[Event "Bamberg-Open 2019"]
[Site "Bamberg"]
[Date "2019.06.02"]
[Round "7.12"]
[White "Pribyl, Josef"]
[Black "Johansson, Jukka"]
[Result "1-0"]
[ECO "A37"]
[WhiteElo "2239"]
[BlackElo "2071"]
[Annotator "ChessBase"]
[PlyCount "113"]
[EventDate "2019.05.12"]
[EventType "swiss"]
[EventCountry "GER"]
[SourceTitle "playchess.com"]
[Source "ChessBase"]
[SourceQuality "1"]
[TimeControl "40/5400+30:900+30"]

1. c4 {[%emt 0:00:00]} c5 {[%emt 0:00:00]} 2. Nf3 {[%emt 0:00:00]} Nc6 {[%emt 0:00:00]} 3. Nc3 {[%emt 0:00:00]} g6 {[%emt 0:00:27]} 4. g3 {[%emt 0:00:00]} Bg7 {[%emt 0:00:19]} 5. Bg2 {[%emt 0:00:00]} e6 {[%emt 0:00:38]} 6. O-O {[%emt 0:00:00]} Nge7 {[%emt 0:00:27]} 7. e3 {[%emt 0:00:48]} O-O {[%emt 0:02:04]} 8. d4 {[%emt 0:00:02]} cxd4 {[%emt 0:01:35]} 9. Nxd4 {[%emt 0:00:03]} Nxd4 {[%emt 0:01:17]} 10. exd4 {[%emt 0:00:02]} d5 {[%emt 0:01:07]} 11. cxd5 {[%emt 0:00:06]} Nxd5 {[%emt 0:00:46]} 12. Nxd5 {[%emt 0:00:18]} exd5 {[%emt 0:00:09]} 13. Be3 {[%emt 0:00:15]} Be6 {[%emt 0:01:22]} 14. Qb3 {[%emt 0:00:01]} Qd7 {[%emt 0:01:07]} 15. Rac1 {[%emt 0:00:01]} Rfc8 {[%emt 0:01:24]} 16. h4 {[%emt 0:00:29]} h5 {[%emt 0:01:09]} 17. Rc3 {[%emt 0:00:40]} Rxc3 {[%emt 0:00:41]} 18. bxc3 {[%emt 0:00:11]} b5 {[%emt 0:04:07]} 19. Ra1 {[%emt 0:01:47]} Rc8 {[%emt 0:14:58]} 20. Bf1 {[%emt 0:00:54]} Qc6 {[%emt 0:03:15]} 21. Bd2 {[%emt 0:00:28]} Bd7 {[%emt 0:00:49]} 22. Bg2 {[%emt 0:02:55]} Be6 {[%emt 0:02:14]} 23. a4 {[%emt 0:00:29]} a6 {[%emt 0:01:44]} 24. axb5 {[%emt 0:17:08]} axb5 {[%emt 0:00:34]} 25. Bf1 {[%emt 0:03:39]} Rb8 {[%emt 0:03:12]} 26. Rb1 {[%emt 0:03:35]} b4 {[%emt 0:12:27]} 27. Bf4 {[%emt 0:07:26]} Rb7 {[%emt 0:04:05]} 28. Bg2 {[%emt 0:01:23]} Rb5 {[%emt 0:12:15]} 29. Qa4 {[%emt 0:01:57]} Rb6 {[%emt 0:14:29]} 30. Rxb4 {[%emt 0:00:41]} Qxa4 {[%emt 0:01:13]} 31. Rxa4 {[%emt 0:00:02]} Rb3 {[%emt 0:01:18]} 32. Bd2 {[%emt 0:03:34]} Rb1+ {[%emt 0:00:50]} 33. Kh2 {[%emt 0:00:03]} Rb2 {[%emt 0:00:25]} 34. Be3 {[%emt 0:00:19]} Rc2 {[%emt 0:05:11]} 35. Ra3 {[%emt 0:03:56]} Kh7 {[%emt 0:00:35]} 36. Kg1 {[%emt 0:11:48]} Bh6 {[%emt 0:01:28]} 37. Bxh6 {[%emt 0:00:07]} Kxh6 {[%emt 0:00:10]} 38. Bf3 {[%emt 0:00:16]} g5 {[%emt 0:06:18]} 39. Ra6 {[%emt 0:02:07]} gxh4 {[%emt 0:01:25]} 40. gxh4 {[%emt 0:00:05]} Rxc3 {[%emt 0:01:31]} 41. Bxd5 {[%emt 0:15:02]} Rc1+ {[%emt 0:06:38]} 42. Kg2 {[%emt 0:00:00]} Re1 {[%emt 0:00:57]} 43. Bxe6 {[%emt 0:00:00]} fxe6 {[%emt 0:01:29]} 44. d5 {[%emt 0:00:00]} Kg7 {[%emt 0:00:43]} 45. Rxe6 {[%emt 0:00:00]} Rd1 {[%emt 0:02:17]} 46. Re5 {[%emt 0:00:00]} Kg6 {[%emt 0:00:13]} 47. Rg5+ {[%emt 0:00:00]} Kh6 {[%emt 0:00:06]} 48. Re5 {[%emt 0:00:00]} Kg6 {[%emt 0:00:30]} 49. f3 {[%emt 0:00:00]} Rd4 {[%emt 0:00:31]} 50. Kg3 {[%emt 0:00:00]} Rd1 {[%emt 0:00:10]} 51. Kf2 {[%emt 0:00:00]} Rd4 {[%emt 0:01:00]} 52. Ke3 {[%emt 0:00:00]} Rxh4 {[%emt 0:00:24]} 53. d6 {[%emt 0:00:00]} Rh1 {[%emt 0:00:27]} 54. Rd5 {[%emt 0:00:00]} Re1+ {[%emt 0:00:12]} 55. Kf4 {[%emt 0:00:00]} Re8 {[%emt 0:00:13]} 56. d7 {[%emt 0:00:00]} Rd8 {[%emt 0:00:18]} 57. Ke4 1-0

[Event "Bamberg-Open 2019"]
[Site "Bamberg"]
[Date "2019.06.02"]
[Round "7.13"]
[White "Birkner, Frank"]
[Black "Berghof, Axel"]
[Result "1/2-1/2"]
[ECO "D71"]
[WhiteElo "1784"]
[BlackElo "2155"]
[Annotator "ChessBase"]
[PlyCount "134"]
[EventDate "2019.05.12"]
[EventType "swiss"]
[EventCountry "GER"]
[SourceTitle "playchess.com"]
[Source "ChessBase"]
[SourceQuality "1"]
[TimeControl "40/5400+30:900+30"]

1. d4 {[%emt 0:00:00]} Nf6 {[%emt 0:00:08]} 2. c4 {[%emt 0:00:00]} g6 {[%emt 0:00:15]} 3. g3 {[%emt 0:00:00]} c6 {[%emt 0:02:16]} 4. Nc3 {[%emt 0:00:53]} Bg7 {[%emt 0:01:05]} 5. e4 {[%emt 0:00:31]} d6 {[%emt 0:00:47]} 6. Bg2 {[%emt 0:00:54]} O-O {[%emt 0:08:49]} 7. h3 {[%emt 0:06:03]} Nbd7 {[%emt 0:05:11]} 8. Be3 {[%emt 0:00:55]} Rb8 {[%emt 0:05:42]} 9. f4 {[%emt 0:06:31]} b5 {[%emt 0:09:22]} 10. cxb5 {[%emt 0:09:49]} cxb5 {[%emt 0:00:49]} 11. Nge2 {[%emt 0:00:24]} Nb6 {[%emt 0:06:23]} 12. b3 {[%emt 0:02:46]} b4 {[%emt 0:01:36]} 13. Nb1 {[%emt 0:00:58]} d5 {[%emt 0:04:20]} 14. e5 {[%emt 0:02:02]} Ne4 {[%emt 0:00:32]} 15. a3 {[%emt 0:00:57]} a5 {[%emt 0:05:48]} 16. axb4 {[%emt 0:00:28]} axb4 {[%emt 0:00:02]} 17. O-O {[%emt 0:00:44]} f5 {[%emt 0:03:04]} 18. Bd2 {[%emt 0:01:18]} Na8 {[%emt 0:21:28]} 19. Ra4 {[%emt 0:26:50]} Bd7 {[%emt 0:04:33]} 20. Rxb4 {[%emt 0:02:26]} Bb5 {[%emt 0:01:24]} 21. Bxe4 {[%emt 0:04:41]} fxe4 {[%emt 0:05:27]} 22. Nbc3 {[%emt 0:01:22]} Bc6 {[%emt 0:01:47]} 23. Rxb8 {[%emt 0:01:13]} Qxb8 {[%emt 0:00:02]} 24. Qb1 {[%emt 0:02:07]} Nb6 {[%emt 0:01:42]} 25. Rc1 {[%emt 0:00:40]} Qb7 {[%emt 0:01:40]} 26. Nd1 {[%emt 0:00:37]} Rc8 {[%emt 0:00:46]} 27. Ne3 {[%emt 0:00:46]} e6 {[%emt 0:00:15]} 28. Bb4 {[%emt 0:00:54]} Bb5 {[%emt 0:01:22]} 29. Kf2 {[%emt 0:04:11]} Bd3 {[%emt 0:01:13]} 30. Rxc8+ {[%emt 0:01:30]} Nxc8 {[%emt 0:00:50]} 31. Qe1 {[%emt 0:00:54]} Na7 {[%emt 0:02:05]} 32. Nc1 {[%emt 0:02:13]} Ba6 {[%emt 0:01:08]} 33. Qc3 {[%emt 0:04:14]} h5 {[%emt 0:01:19]} 34. h4 {[%emt 0:00:25]} Kh7 {[%emt 0:00:11]} 35. Qc5 {[%emt 0:00:55]} Nc6 {[%emt 0:00:22]} 36. Ba3 {[%emt 0:00:31]} Bb5 {[%emt 0:00:17]} 37. Qd6 {[%emt 0:02:03]} Nxd4 {[%emt 0:00:32]} 38. Bc5 {[%emt 0:01:04]} Qc6 {[%emt 0:01:51]} 39. Qxc6 {[%emt 0:03:06]} Nxc6 {[%emt 0:00:05]} 40. Nc2 {[%emt 0:00:43]} Kg8 {[%emt 0:00:41]} 41. Ke3 {[%emt 0:16:23]} Bf8 {[%emt 0:04:28]} 42. Bxf8 {[%emt 0:00:00]} Kxf8 {[%emt 0:00:11]} 43. Nd4 {[%emt 0:00:00]} Nxd4 {[%emt 0:01:30]} 44. Kxd4 {[%emt 0:00:00]} Ke7 {[%emt 0:00:50]} 45. Na2 {[%emt 0:00:00]} Kd7 {[%emt 0:00:35]} 46. Nc3 {[%emt 0:00:00]} Kc6 {[%emt 0:00:30]} 47. b4 {[%emt 0:00:00]} Kb6 {[%emt 0:04:13]} 48. Nd1 {[%emt 0:00:00]} Bc4 {[%emt 0:02:08]} 49. Ne3 {[%emt 0:00:00]} Be2 {[%emt 0:03:12]} 50. f5 {[%emt 0:00:00]} gxf5 {[%emt 0:00:22]} 51. Ng2 {[%emt 0:00:00]} Kb5 {[%emt 0:03:25]} 52. Nf4 {[%emt 0:00:00]} Bg4 {[%emt 0:00:09]} 53. Nxe6 {[%emt 0:00:00]} Kxb4 {[%emt 0:00:06]} 54. Nf4 {[%emt 0:00:00]} Kb5 {[%emt 0:00:20]} 55. Nxd5 {[%emt 0:00:00]} Kc6 {[%emt 0:00:26]} 56. Ne3 {[%emt 0:00:00]} Bh3 {[%emt 0:00:13]} 57. Nc2 {[%emt 0:00:35]} Bg4 {[%emt 0:01:00]} 58. Nb4+ {[%emt 0:03:35]} Kd7 {[%emt 0:00:18]} 59. Nd5 {[%emt 0:02:00]} Ke6 {[%emt 0:00:27]} 60. Nf4+ {[%emt 0:00:07]} Ke7 {[%emt 0:00:17]} 61. Ng2 {[%emt 0:03:52]} Ke6 {[%emt 0:00:19]} 62. Nf4+ {[%emt 0:02:25]} Ke7 {[%emt 0:00:30]} 63. Ke3 {[%emt 0:00:51]} Kf7 {[%emt 0:00:20]} 64. Ng2 {[%emt 0:01:34]} Ke6 {[%emt 0:00:14]} 65. Kf4 {[%emt 0:01:24]} Kf7 {[%emt 0:02:24]} 66. Ne3 {[%emt 0:00:42]} Bh3 {[%emt 0:00:24]} 67. Nc2 {[%emt 0:01:22]} Ke7 1/2-1/2

[Event "Bamberg-Open 2019"]
[Site "Bamberg"]
[Date "2019.06.02"]
[Round "7.14"]
[White "Spitzl, Philipp"]
[Black "Zenker, Ulrich"]
[Result "1-0"]
[ECO "A25"]
[WhiteElo "2013"]
[BlackElo "2147"]
[Annotator "ChessBase"]
[PlyCount "57"]
[EventDate "2019.05.12"]
[EventType "swiss"]
[EventCountry "GER"]
[SourceTitle "playchess.com"]
[Source "ChessBase"]
[SourceQuality "1"]
[TimeControl "40/5400+30:900+30"]

1. c4 {[%emt 0:00:34]} e5 {[%emt 0:00:57]} 2. g3 {[%emt 0:00:14]} Nc6 {[%emt 0:00:11]} 3. Bg2 {[%emt 0:00:13]} g6 {[%emt 0:00:28]} 4. Nc3 {[%emt 0:00:17]} Bg7 {[%emt 0:00:05]} 5. e4 {[%emt 0:00:13]} Nd4 {[%emt 0:00:58]} 6. Nge2 {[%emt 0:01:59]} Nxe2 {[%emt 0:00:07]} 7. Nxe2 {[%emt 0:01:14]} Ne7 {[%emt 0:00:19]} 8. d4 {[%emt 0:03:10]} d6 {[%emt 0:01:52]} 9. Be3 {[%emt 0:07:29]} O-O {[%emt 0:07:19]} 10. Qd2 {[%emt 0:08:55]} Be6 {[%emt 0:05:06]} 11. b3 {[%emt 0:01:22]} a6 {[%emt 0:08:27]} 12. O-O {[%emt 0:02:01]} Qc8 {[%emt 0:03:13]} 13. d5 {[%emt 0:04:22]} Bd7 {[%emt 0:00:49]} 14. c5 {[%emt 0:00:07]} Qb8 {[%emt 0:12:32]} 15. cxd6 {[%emt 0:03:08]} cxd6 {[%emt 0:00:06]} 16. Rac1 {[%emt 0:00:19]} b5 {[%emt 0:00:32]} 17. Qa5 {[%emt 0:01:15]} Bf6 {[%emt 0:17:22]} 18. Rc7 {[%emt 0:10:46]} Rd8 {[%emt 0:09:28]} 19. f4 {[%emt 0:05:23]} Kg7 {[%emt 0:06:38]} 20. h3 {[%emt 0:03:51]} b4 {[%emt 0:01:07]} 21. fxe5 {[%emt 0:05:10]} Bxe5 {[%emt 0:00:23]} 22. Nd4 {[%emt 0:05:35]} Kg8 {[%emt 0:13:11]} 23. g4 {[%emt 0:10:34]} Bxd4 {[%emt 0:02:46]} 24. Bxd4 {[%emt 0:00:02]} Qb5 {[%emt 0:00:11]} 25. Qxb5 {[%emt 0:01:44]} axb5 {[%emt 0:00:07]} 26. Bf6 {[%emt 0:01:41]} Kf8 {[%emt 0:00:52]} 27. e5 {[%emt 0:00:10]} Ra6 {[%emt 0:01:55]} 28. e6 {[%emt 0:00:31]} fxe6 {[%emt 0:00:09]} 29. dxe6 {[%emt 0:00:13]} 1-0

[Event "Bamberg-Open 2019"]
[Site "Bamberg"]
[Date "2019.06.02"]
[Round "7.15"]
[White "Kues, Hendrik"]
[Black "Grimm, Pascal"]
[Result "1/2-1/2"]
[ECO "A40"]
[WhiteElo "2137"]
[BlackElo "1880"]
[Annotator "ChessBase"]
[PlyCount "153"]
[EventDate "2019.05.12"]
[EventType "swiss"]
[EventCountry "GER"]
[SourceTitle "playchess.com"]
[Source "ChessBase"]
[SourceQuality "1"]
[TimeControl "40/5400+30:900+30"]

1. d4 {[%emt 0:00:00]} e6 {[%emt 0:02:34]} 2. Bf4 {[%emt 0:00:04]} f5 {[%emt 0:00:33]} 3. e3 {[%emt 0:00:32]} Nf6 {[%emt 0:00:07]} 4. h3 {[%emt 0:00:10]} b6 {[%emt 0:00:20]} 5. Nf3 {[%emt 0:00:05]} Bb7 {[%emt 0:00:05]} 6. a4 {[%emt 0:00:18]} a5 {[%emt 0:00:55]} 7. Be2 {[%emt 0:00:14]} Be7 {[%emt 0:01:20]} 8. O-O {[%emt 0:00:09]} O-O {[%emt 0:00:05]} 9. Bh2 {[%emt 0:02:54]} Ne4 {[%emt 0:01:15]} 10. Nbd2 {[%emt 0:00:14]} Bf6 {[%emt 0:01:44]} 11. Nxe4 {[%emt 0:01:09]} Bxe4 {[%emt 0:06:35]} 12. c3 {[%emt 0:00:15]} d6 {[%emt 0:00:50]} 13. Bc4 {[%emt 0:05:13]} Qe7 {[%emt 0:42:51]} 14. d5 {[%emt 0:13:49]} e5 {[%emt 0:05:39]} 15. Nd2 {[%emt 0:02:59]} Qf7 {[%emt 0:00:28]} 16. Nxe4 {[%emt 0:26:44]} fxe4 {[%emt 0:00:02]} 17. Qg4 {[%emt 0:00:14]} Qg6 {[%emt 0:02:39]} 18. Qxg6 {[%emt 0:00:06]} hxg6 {[%emt 0:00:01]} 19. Rfd1 {[%emt 0:00:29]} Bh4 {[%emt 0:04:13]} 20. g3 {[%emt 0:08:04]} Bg5 {[%emt 0:00:00]} 21. b4 Nd7 22. Bb3 {[%emt 0:02:37]} Nf6 {[%emt 0:03:35]} 23. Bc2 {[%emt 0:00:55]} Rf7 {[%emt 0:02:41]} 24. Kg2 {[%emt 0:00:17]} Rff8 25. Bg1 Kf7 {[%emt 0:01:58]} 26. Rab1 {[%emt 0:02:15]} Rh8 {[%emt 0:00:56]} 27. Rd2 {[%emt 0:01:39]} Ke7 {[%emt 0:00:40]} 28. Bd1 {[%emt 0:01:57]} Kd7 {[%emt 0:01:30]} 29. Ra1 {[%emt 0:02:21]} Ke7 {[%emt 0:03:14]} 30. Be2 {[%emt 0:01:44]} Nd7 {[%emt 0:02:34]} 31. Bb5 {[%emt 0:01:18]} Nb8 {[%emt 0:00:31]} 32. Rdd1 {[%emt 0:02:20]} Rf8 {[%emt 0:00:23]} 33. Rf1 {[%emt 0:03:44]} Rf6 {[%emt 0:02:05]} 34. Be2 {[%emt 0:03:25]} Nd7 {[%emt 0:01:02]} 35. Bc4 {[%emt 0:04:13]} Rff8 {[%emt 0:00:21]} 36. Bb3 {[%emt 0:00:13]} Rf7 {[%emt 0:00:09]} 37. Rad1 {[%emt 0:00:48]} Rff8 {[%emt 0:00:18]} 38. Bc2 {[%emt 0:04:09]} Nf6 {[%emt 0:00:02]} 39. Rd2 {[%emt 0:03:11]} Rf7 {[%emt 0:02:53]} 40. f3 {[%emt 0:05:42]} exf3+ {[%emt 0:01:46]} 41. Rxf3 {[%emt 0:15:02]} Nd7 {[%emt 0:17:59]} 42. Rxf7+ {[%emt 0:03:11]} Kxf7 {[%emt 0:00:07]} 43. Rd1 {[%emt 0:00:17]} Bf6 {[%emt 0:05:41]} 44. e4 {[%emt 0:00:51]} Bg5 {[%emt 0:00:16]} 45. Bf2 {[%emt 0:00:26]} Bh6 {[%emt 0:00:00]} 46. Kf3 {[%emt 0:00:00]} Ke7 {[%emt 0:00:00]} 47. Ke2 {[%emt 0:00:00]} Nf6 {[%emt 0:00:00]} 48. Rb1 {[%emt 0:00:00]} Nd7 {[%emt 0:00:00]} 49. g4 {[%emt 0:00:00]} Bf4 {[%emt 0:00:00]} 50. h4 {[%emt 0:00:00]} Nf6 {[%emt 0:00:00]} 51. Rg1 {[%emt 0:00:00]} Bh2 {[%emt 0:00:00]} 52. Rg2 {[%emt 0:00:00]} Bf4 {[%emt 0:00:00]} 53. Be1 {[%emt 0:00:00]} Kf7 {[%emt 0:00:00]} 54. Kd3 {[%emt 0:00:00]} Ke7 {[%emt 0:01:35]} 55. Kc4 {[%emt 0:00:00]} Kd7 {[%emt 0:00:41]} 56. Kb5 {[%emt 0:00:00]} g5 {[%emt 0:02:47]} 57. h5 {[%emt 0:00:00]} Ra7 {[%emt 0:00:30]} 58. Bf2 {[%emt 0:00:00]} Ra8 {[%emt 0:02:30]} 59. Kc4 {[%emt 0:00:00]} Ke7 {[%emt 0:00:45]} 60. Kd3 {[%emt 0:00:38]} Kd7 {[%emt 0:00:35]} 61. Bd1 {[%emt 0:00:25]} Ke7 {[%emt 0:00:24]} 62. Rg1 {[%emt 0:00:08]} Kf7 {[%emt 0:00:51]} 63. Be1 {[%emt 0:00:59]} Ke7 {[%emt 0:00:33]} 64. Rg2 {[%emt 0:00:19]} Kd7 {[%emt 0:00:11]} 65. Ra2 {[%emt 0:01:15]} Kc8 {[%emt 0:00:38]} 66. Rb2 {[%emt 0:00:46]} Kd7 {[%emt 0:00:45]} 67. Ra2 {[%emt 0:00:52]} Kc8 {[%emt 0:00:11]} 68. Ra1 {[%emt 0:00:21]} Kd7 {[%emt 0:00:04]} 69. Bf3 {[%emt 0:00:29]} Kc8 {[%emt 0:00:39]} 70. Bf2 {[%emt 0:00:14]} Kd7 {[%emt 0:00:10]} 71. Kc2 {[%emt 0:00:52]} Kc8 {[%emt 0:00:02]} 72. Kb3 {[%emt 0:00:24]} Kd7 {[%emt 0:00:04]} 73. Rh1 {[%emt 0:00:08]} Ng8 {[%emt 0:00:06]} 74. Be2 {[%emt 0:00:45]} Ke7 {[%emt 0:01:28]} 75. Rh3 {[%emt 0:01:10]} Nh6 {[%emt 0:00:48]} 76. Rh1 {[%emt 0:00:39]} Ng8 {[%emt 0:00:04]} 77. Rh3 {[%emt 0:00:31]} 1/2-1/2

[Event "Bamberg-Open 2019"]
[Site "Bamberg"]
[Date "2019.06.02"]
[Round "7.16"]
[White "Boehme, Sebastian"]
[Black "Ruffenach, Alain"]
[Result "1-0"]
[ECO "B75"]
[WhiteElo "2103"]
[BlackElo "1936"]
[Annotator "ChessBase"]
[PlyCount "99"]
[EventDate "2019.05.12"]
[EventType "swiss"]
[EventCountry "GER"]
[SourceTitle "playchess.com"]
[Source "ChessBase"]
[SourceQuality "1"]
[TimeControl "40/5400+30:900+30"]

1. e4 {[%emt 0:00:00]} g6 {[%emt 0:01:48]} 2. d4 {[%emt 0:00:00]} Bg7 {[%emt 0:00:06]} 3. Nc3 {[%emt 0:00:11]} c5 {[%emt 0:00:40]} 4. Be3 {[%emt 0:03:01]} Qa5 {[%emt 0:03:51]} 5. Nge2 {[%emt 0:05:53]} Nf6 {[%emt 0:01:10]} 6. f3 {[%emt 0:01:30]} d6 {[%emt 0:05:14]} 7. Nc1 {[%emt 0:05:00]} cxd4 {[%emt 0:08:31]} 8. Nb3 {[%emt 0:01:08]} Qd8 {[%emt 0:05:44]} 9. Nxd4 {[%emt 0:01:09]} a6 {[%emt 0:00:19]} 10. Bc4 {[%emt 0:11:05]} Nc6 {[%emt 0:05:05]} 11. O-O {[%emt 0:02:05]} O-O {[%emt 0:02:03]} 12. Qd2 {[%emt 0:06:31]} Bd7 {[%emt 0:04:53]} 13. Nd5 {[%emt 0:05:12]} Nxd5 {[%emt 0:11:31]} 14. Bxd5 {[%emt 0:06:46]} e6 {[%emt 0:00:58]} 15. Bb3 {[%emt 0:06:28]} Na5 {[%emt 0:01:07]} 16. c3 {[%emt 0:02:37]} Qc7 {[%emt 0:02:48]} 17. Rfd1 {[%emt 0:02:00]} Rfd8 {[%emt 0:05:20]} 18. Bg5 {[%emt 0:04:12]} Re8 {[%emt 0:00:22]} 19. Kh1 {[%emt 0:04:51]} Rac8 {[%emt 0:06:31]} 20. Nc2 {[%emt 0:02:25]} Bc6 {[%emt 0:04:07]} 21. Qxd6 {[%emt 0:00:58]} Nxb3 {[%emt 0:01:02]} 22. Qxc7 {[%emt 0:01:00]} Rxc7 {[%emt 0:01:57]} 23. axb3 {[%emt 0:00:06]} h6 {[%emt 0:00:38]} 24. Be3 {[%emt 0:01:28]} Rcc8 {[%emt 0:01:14]} 25. Bb6 {[%emt 0:00:54]} f5 {[%emt 0:01:01]} 26. Re1 {[%emt 0:02:57]} fxe4 {[%emt 0:01:54]} 27. fxe4 {[%emt 0:00:10]} Rf8 {[%emt 0:01:11]} 28. g3 {[%emt 0:09:01]} Rf3 {[%emt 0:02:42]} 29. Rad1 {[%emt 0:01:05]} Rcf8 {[%emt 0:00:39]} 30. Kg2 {[%emt 0:02:12]} R3f5 {[%emt 0:00:53]} 31. Nb4 {[%emt 0:01:21]} Rb5 {[%emt 0:01:02]} 32. Bc7 {[%emt 0:03:54]} Rc8 {[%emt 0:01:56]} 33. Bd6 {[%emt 0:01:37]} Be8 {[%emt 0:00:58]} 34. c4 {[%emt 0:02:00]} Rb6 {[%emt 0:02:04]} 35. Rd3 {[%emt 0:00:58]} Bxb2 {[%emt 0:02:59]} 36. e5 {[%emt 0:02:42]} a5 {[%emt 0:01:42]} 37. Nc2 {[%emt 0:00:40]} a4 {[%emt 0:00:32]} 38. Rb1 {[%emt 0:02:10]} Rxb3 {[%emt 0:02:19]} 39. Rxb3 {[%emt 0:00:19]} axb3 {[%emt 0:00:57]} 40. Rxb2 {[%emt 0:01:48]} bxc2 {[%emt 0:00:23]} 41. Rxc2 {[%emt 0:15:12]} Bb5 {[%emt 0:17:57]} 42. c5 {[%emt 0:00:00]} Bc6+ {[%emt 0:01:16]} 43. Kh3 {[%emt 0:00:00]} Ra8 {[%emt 0:00:03]} 44. Rf2 {[%emt 0:00:00]} Bd5 {[%emt 0:00:20]} 45. Rf6 {[%emt 0:00:00]} Kg7 {[%emt 0:00:21]} 46. Rf2 {[%emt 0:00:00]} h5 {[%emt 0:00:57]} 47. Kh4 {[%emt 0:00:00]} Ra4+ {[%emt 0:00:30]} 48. Rf4 {[%emt 0:00:00]} Ra2 {[%emt 0:03:14]} 49. h3 {[%emt 0:00:00]} Ra8 {[%emt 0:02:39]} 50. Kg5 {[%emt 0:00:00]} 1-0

[Event "Bamberg-Open 2019"]
[Site "Bamberg"]
[Date "2019.06.02"]
[Round "7.17"]
[White "Carnot, Luca"]
[Black "Haasner, Tom"]
[Result "1-0"]
[ECO "A36"]
[WhiteElo "2043"]
[BlackElo "1963"]
[Annotator "NA"]
[PlyCount "157"]
[EventDate "2019.05.12"]
[EventType "swiss"]
[EventCountry "GER"]
[SourceTitle "playchess.com"]
[Source "ChessBase"]
[SourceQuality "1"]
[TimeControl "40/5400+30:900+30"]

1. c4 {[%emt 0:01:29]} c5 {[%emt 0:00:00]} 2. g3 {[%emt 0:00:05]} Nc6 {[%emt 0:00:11]} 3. Bg2 {[%emt 0:00:13]} g6 {[%emt 0:00:09]} 4. Nc3 {[%emt 0:00:05]} Bg7 {[%emt 0:00:08]} 5. e4 {[%emt 0:03:24]} e6 {[%emt 0:00:43]} 6. Nge2 {[%emt 0:00:08]} Nge7 {[%emt 0:00:55]} 7. O-O {[%emt 0:00:33]} O-O {[%emt 0:00:30]} 8. a3 {[%emt 0:00:10]} b6 {[%emt 0:21:01] A36: Symmetrical English vs ...g6: 4 Bg2 Bg7} (8... Nd4 9. d3 Nec6 10. Rb1 a5 11. a4 d6 12. h3 e5 13. Kh2 Be6 14. Nb5 Nxe2 15. Qxe2 Qd7 16. Bd2 {½-½ (35) Kaspi,A (2435)-Landa,K (2617) Escaldes 2017}) 9. Rb1 {[%emt 0:00:35]} a5 {[%emt 0:02:17]} 10. d3 {[%emt 0:02:59]} Nd4 {[%emt 0:19:01]} 11. Bf4 $146 {[%emt 0:11:56]} ({Predecessor:} 11. Nxd4 Bxd4 12. Bh6 Bg7 13. Bxg7 Kxg7 14. e5 Rb8 15. b4 axb4 16. axb4 cxb4 17. Rxb4 {1-0 (42) Gusev,Y (2380)-Titenko,V Podolsk 1982}) 11... Nxe2+ {[%emt 0:11:11]} 12. Qxe2 {[%emt 0:01:27]} d6 {[%emt 0:05:19]} 13. e5 {[%emt 0:07:07]} d5 {[%emt 0:00:24]} 14. Bg5 {[%emt 0:02:36]} Bb7 {[%emt 0:03:12]} 15. f4 {[%emt 0:01:23]} Re8 {[%emt 0:05:10]} 16. Nb5 {[%emt 0:02:30]} h6 {[%emt 0:00:52]} 17. Nd6 {[%emt 0:09:29]} hxg5 {[%emt 0:02:59]} 18. Nxb7 {[%emt 0:00:05]} Qd7 {[%emt 0:00:55]} 19. Nd6 {[%emt 0:00:02]} Rf8 {[%emt 0:02:26]} 20. fxg5 {[%emt 0:06:09]} (20. Rbe1 $16) 20... Rad8 {[%emt 0:06:55]} 21. cxd5 {[%emt 0:05:52]} Nxd5 {[%emt 0:01:18]} 22. Nc4 {[%emt 0:01:16]} b5 {[%emt 0:07:19]} 23. Nd2 {[%emt 0:03:39]} Ne7 {[%emt 0:02:22]} 24. Nb3 {[%emt 0:12:13]} a4 {[%emt 0:02:28]} 25. Nxc5 {[%emt 0:02:42]} Qd4+ {[%emt 0:00:11]} 26. Qf2 {[%emt 0:00:03]} Bxe5 {[%emt 0:01:19]} 27. Ne4 {[%emt 0:00:02]} Nf5 {[%emt 0:00:56]} 28. Rfd1 {[%emt 0:03:18]} Rc8 {[%emt 0:02:51]} 29. Rd2 {[%emt 0:04:02]} Kg7 {[%emt 0:00:01]} 30. Kf1 {[%emt 0:08:01]} Ne3+ {[%emt 0:00:55]} 31. Ke2 {[%emt 0:00:10]} Nd5 {[%emt 0:00:59]} 32. Qf3 {[%emt 0:01:02]} b4 {[%emt 0:00:29]} 33. axb4 {[%emt 0:02:09]} Qxb4 {[%emt 0:00:17]} 34. d4 {[%emt 0:03:35]} Qc4+ {[%emt 0:00:45]} 35. Qd3 {[%emt 0:00:22]} Qxd3+ {[%emt 0:00:26]} 36. Kxd3 {[%emt 0:00:13]} Bb8 {[%emt 0:00:35]} 37. Nc5 {[%emt 0:00:24]} Rfd8 {[%emt 0:00:28]} 38. Nxa4 {[%emt 0:01:31]} Nb4+ {[%emt 0:00:10]} 39. Ke4 {[%emt 0:01:52]} Ba7 {[%emt 0:00:49]} 40. Nc3 {[%emt 0:01:23]} Rc4 {[%emt 0:00:30]} 41. Nb5 {[%emt 0:15:27]} Bb8 {[%emt 0:02:31]} 42. Bf1 {[%emt 0:00:00]} Rc6 {[%emt 0:00:42]} 43. Ra1 {[%emt 0:00:00]} Bd6 {[%emt 0:06:18]} 44. Ra7 {[%emt 0:00:00]} Rc1 {[%emt 0:00:46]} 45. Rf2 {[%emt 0:00:00]} Re1+ {[%emt 0:00:30]} 46. Be2 {[%emt 0:00:00]} Kg8 {[%emt 0:02:17]} 47. Ke3 {[%emt 0:00:00]} Nd5+ {[%emt 0:00:27]} 48. Kd3 {[%emt 0:00:00]} Be7 {[%emt 0:00:30]} 49. Nc3 {[%emt 0:00:00]} Kf8 {[%emt 0:02:01]} 50. Kd2 {[%emt 0:00:56]} Rg1 {[%emt 0:00:12] [#]} 51. Bc4 $1 {[%emt 0:00:45]} Bxg5+ {[%emt 0:00:23]} 52. Ke2 {[%emt 0:00:32]} Be7 {[%emt 0:02:21]} (52... f5 $16 {might work better.}) 53. Bxd5 $1 {[%emt 0:02:09]} exd5 {[%emt 0:00:07]} 54. Rb7 {[%emt 0:00:26]} Rc1 {[%emt 0:00:28]} 55. Kd3 {[%emt 0:00:19]} f5 {[%emt 0:01:08]} (55... Rd6 {is a better defense.} 56. Ra7 Rd8) 56. g4 {[%emt 0:00:12]} Bd6 {[%emt 0:01:38]} 57. gxf5 {[%emt 0:00:13]} g5 {[%emt 0:00:07]} 58. Rb5 {[%emt 0:02:33]} ({Weaker is} 58. Nxd5 Rd1+ 59. Rd2 Rxd2+ 60. Kxd2 Bxh2 $18) 58... Bf4 {[%emt 0:00:23]} 59. Nxd5 {[%emt 0:00:48]} Rd1+ {[%emt 0:00:23]} 60. Kc3 {[%emt 0:00:33]} Rc8+ {[%emt 0:00:21]} 61. Kb3 {[%emt 0:00:28]} Rxd4 {[%emt 0:00:08]} (61... Rd3+ $16 {was called for.} 62. Nc3 Rxd4) 62. Nxf4 {[%emt 0:00:04]} gxf4 {[%emt 0:00:16]} 63. Rf3 {[%emt 0:00:56]} ({Better is} 63. Rb4 $18 Rd3+ 64. Ka2) 63... Re4 $2 {[%emt 0:00:56]} (63... Kf7 $14) 64. Rb4 {[%emt 0:00:24]} Rce8 {[%emt 0:00:30]} 65. Rxf4 {[%emt 0:00:57]} Re3+ {[%emt 0:00:29]} 66. Ka2 {[%emt 0:01:09]} Rh3 {[%emt 0:00:33]} 67. Rf2 {[%emt 0:00:49]} Ra8+ {[%emt 0:00:05]} 68. Kb1 {[%emt 0:00:04]} Kf7 {[%emt 0:00:33]} 69. f6 {[%emt 0:00:09]} Ra7 {[%emt 0:00:08]} 70. Rg4 {[%emt 0:00:35]} Kf8 {[%emt 0:00:34]} 71. Rg3 {[%emt 0:00:51]} Rh5 {[%emt 0:00:21]} 72. Kc2 {[%emt 0:00:12]} Rb7 {[%emt 0:00:20]} 73. Rd2 {[%emt 0:00:30]} Rb8 {[%emt 0:00:55]} 74. Rgd3 {[%emt 0:01:03]} Kf7 {[%emt 0:00:20]} 75. Rd7+ {[%emt 0:00:05]} Kxf6 {[%emt 0:00:26]} 76. R2d6+ {[%emt 0:00:03]} Kg5 {[%emt 0:00:19]} 77. Rd5+ {[%emt 0:00:04]} Kh4 {[%emt 0:00:09]} 78. Rxh5+ {[%emt 0:00:06]} Kxh5 $18 {[%emt 0:00:08]} 79. Rd4 {[%emt 0:00:03]} 1-0